Cogmind - Beta 16 @@@ ROGUE MODE // 2025.11.26 @ 15:14:37 Player: ClassActJerk Result: Destroyed by FL-3ZW(R) with Subdweller Laser Performance ------------- Evolutions (0) 0 Regions Visited (2) 400 Robots Destroyed (3) 15 Value Destroyed (82) 82 Prototype IDs (0) 0 Alien Tech Used (0) 0 Bonus (0) 0 TOTAL SCORE: 497 Bonus ------- None Cogmind --------- Core Integrity 0/250 Matter 286/300 Energy 100/100 System Corruption 0% Temperature Cool (6) Movement Core (350) Ox6 Location -10/Subcaves Parts ------- > --- POWER (1) -------- (None) > --- PROPULSION (2) --- (None) > --- UTILITY (2) ------ Large Storage Unit > --- WEAPON (2) ------- (None) > --- INVENTORY (15) --- Light Ion Engine Aluminum Leg Medium Matter Pod (23) Peak State ------------ > --- POWER ------------ Light Ion Engine > --- PROPULSION ------- Aluminum Leg Aluminum Leg > --- UTILITY ---------- Large Storage Unit Propulsion Shielding > --- WEAPON ----------- Medium Laser Particle Gun > --- INVENTORY -------- Light Ion Engine Aluminum Leg Medium Matter Pod [Rating: 8] Favorites ----------- Power Light Ion Engine Engine Light Ion Engine Propulsion Aluminum Leg Leg Aluminum Leg Utility Propulsion Shielding Storage Large Storage Unit Protection Propulsion Shielding Weapon Medium Laser Energy Gun Medium Laser Ballistic Gun Assault Rifle Build | -11 -10 -10 ------- Run | Yrd Mat Sub Slots Evolved . | . . . Power . | . . . Propulsion . | . . . Utility . | . . . Weapon . | . . . Parts Attached 11 | 3 5 3 Power 1 | . 1 . Engine 1 | . 1 . Core . | . . . Reactor . | . . . Propulsion 3 | 2 . 1 Treads . | . . . Leg 3 | 2 . 1 Wheel . | . . . Hover . | . . . Flight . | . . . Utility 3 | . 3 . Device . | . . . Storage 2 | . 2 . Processor . | . . . Hackware . | . . . Protection 1 | . 1 . Artifact . | . . . Weapon 4 | 1 1 2 Energy Gun 3 | . 1 2 Energy Cannon . | . . . Ballistic Gun 1 | 1 . . Ballistic Cannon . | . . . Launcher . | . . . Special Weapon . | . . . Impact Weapon . | . . . Slashing Weapon . | . . . Piercing Weapon . | . . . Special Melee Weapon . | . . . Unidentified Prototypes . | . . . Parts Lost 8 | . . 8 Power 1 | . . 1 Propulsion 2 | . . 2 Utility 1 | . . 1 Weapon 4 | . . 4 Highest Loss Streak 8 | . . 8 To Critical Strikes . | . . . Average Backups 4 | 3 3 4 Power 1 | 1 1 1 Propulsion . | . . 1 Utility . | . . 1 Weapon 1 | 1 1 1 Tool/Special . | . . . Unused Backups 4 | . 2 2 Power 2 | . 1 1 Propulsion 1 | . 1 . Utility 1 | . . 1 Weapon . | . . . Tool/Special . | . . . Average Slot Usage (%) 94 | . 94 94 Engine 12 | . 12 13 Leg 27 | . 28 27 Storage 13 | . 12 14 Protection 12 | . 12 12 Energy Gun 14 | . 12 15 Ballistic Gun 12 | . 14 10 Peak Build Rating 8 | 3 7 8 Average Rating 6 | 1 6 6 On Entrance 3 | . 3 7 Avg Prop Armor Cover (%) . | . . . Naked Turns . | . . . Heaviest Build 28 | 2 28 28 Greatest Support 20 | 20 20 20 Greatest Overweight (x) 6 | . 1 6 Average Overweight (x) . | . . 1 Largest Inventory Capacity 15 | 5 15 15 Average Capacity 11 | 5 8 15 Most Carried 7 | 5 7 5 Average Carried 4 | 4 3 4 Final Capacity 15 | 5 15 15 Final Carried 5 | 5 5 3 Class Distribution -------------------- 100% | Mutant Dominant Class ---------------- Mutant | -10/Materials Mutant | -10/Subcaves Resources | -11 -10 -10 ----------- Run | Yrd Mat Sub Matter Collected 330 | 226 84 20 Remotely . | . . . Salvage Created 102 | . 102 . Parts 9 | . 9 . Haulers Intercepted . | . . . Recyclers Shooed . | . . . Parts Field Recycled . | . . . Retrieved Matter . | . . . Parts Self-Destructed 8 | . . 8 Prevented . | . . . Parts Restored . | . . . Kills | -11 -10 -10 ------- Run | Yrd Mat Sub Combat Hostiles Destroyed 2 | . 2 . Guns 2 | . 2 . Classes Destroyed 2 | . 2 . Worker 1 | . 1 . Grunt 2 | . 2 . Best Kill Streak 1 | . 1 . Combat Bots Only 1 | . 1 . Max Kills in Single Turn 1 | . 1 . Gunslinging . | . . . Exploded . | . . . Melee . | . . . Uniques/NPCs Destroyed . | . . . Combat | -11 -10 -10 -------- Run | Yrd Mat Sub Hostile Shots Fired 69 | . 12 57 Missed 14 | . 3 11 Hits 55 | . 9 46 Projectile 55 | . 9 46 Critical Strikes 5 | . 1 4 Actively Blocked 1 | . . 1 Damage Taken 1059 | . 109 950 Core 266 | . 13 253 Absorbed by Shields . | . . . Redirected to Shielding 56 | . 9 47 Core Remaining (%) 100 | 100 . . Volleys Fired 45 | . 9 36 Largest 2 | . 2 2 Hottest 115 | . 70 115 Shots Fired 82 | . 18 64 Gun 82 | . 18 64 Cannon . | . . . Launcher . | . . . Special . | . . . Kinetic 17 | . 9 8 Thermal 65 | . 9 56 Explosive . | . . . Electromagnetic . | . . . Robot Hit Streak 28 | . 8 28 Robot Miss Streak 2 | . 1 2 Penetration Max . | . . . Secondary Targets . | . . . Shots Hit Robots 64 | . 12 52 Core Hits 6 | . 6 . Critical Kills . | . . . Critical Parts Destroyed . | . . . Critical Strikes . | . . . Melee Attacks . | . . . Impact . | . . . Slashing . | . . . Piercing . | . . . Sneak Attacks . | . . . Combat Hostiles . | . . . Follow-up Attacks . | . . . Damage Inflicted 151 | . 151 . Guns 151 | . 151 . Cannons . | . . . Explosions . | . . . Melee . | . . . Ramming . | . . . Kinetic 62 | . 62 . Thermal 89 | . 89 . Explosive . | . . . Electromagnetic . | . . . Impact . | . . . Slashing . | . . . Piercing . | . . . Highest Corruption . | . . . Average Corruption . | . . . Corruption Purged . | . . . Corruption Blocked . | . . . Overload Shots . | . . . Overflow Damage . | . . . Projectiles . | . . . Explosions . | . . . Melee . | . . . Knockbacks . | . . . Impact . | . . . Kinetic . | . . . Secondary . | . . . Self-Inflicted Damage . | . . . Shots . | . . . Rammed . | . . . Targets Rammed . | . . . Kicked . | . . . Crushed . | . . . Highest Temperature 99 | . 99 16 Average Temperature 24 | . 42 7 Received Heat Transfer 360 | . 84 276 Siege Activations . | . . . Martial Activations . | . . . Shielding Activations . | . . . Robots Disrupted . | . . . Combat Hostiles . | . . . Robots Corrupted . | . . . Combat Hostiles . | . . . Parts Fried . | . . . Impact Corruptions . | . . . Robots Melted . | . . . Combat Hostiles . | . . . Parts Melted . | . . . Heat Transferred 259 | . 259 . Parts Sabotaged . | . . . Parts Stolen . | . . . Parts Stripped . | . . . Power Chain Reactions . | . . . Alert | -11 -10 -10 ------- Run | Yrd Mat Sub Maximum Alert Level . | . . . Low Security (%) 100 | 100 100 . Level 1 . | . . . Level 2 . | . . . Level 3 . | . . . Level 4 . | . . . Level 5 . | . . . High Security . | . . . Max Security . | . . . Peak Influence 41 | . 41 . Initial . | . . . Average 7 | . 7 . Influence Increases 71 | . 71 . Destroy 0b10 Robot/C 40 | . 40 . Destroy 0b10 Robot/NC 5 | . 5 . Destroy Leader 10 | . 10 . Destroy Structure 1 | . 1 . Lose Combat Pursuer 15 | . 15 . Influence Decreases 71 | . 50 21 Entered New Map 11 | . . 11 Time Decay 60 | . 50 10 Squads Dispatched . | . . . Investigation . | . . . Extermination . | . . . Reinforcement . | . . . Assault . | . . . Garrison . | . . . Intercept . | . . . Searches Triggered . | . . . Construction Impeded . | . . . Haulers Reinforced . | . . . Active Scanning Responses . | . . . Cargo Convoy Interrupts . | . . . Stealth | -11 -10 -10 --------- Run | Yrd Mat Sub Distress Signals 1 | . 1 . Communications Jammed . | . . . Distress Signals . | . . . Times Spotted 5 | . 4 1 Peak Tracking Total 3 | . 3 1 Tactical Retreats 1 | . 1 . Traps | -11 -10 -10 ------- Run | Yrd Mat Sub Traps Triggered . | . . . Indirectly . | . . . Trap Hack Attempts . | . . . Triggered . | . . . Disarmed . | . . . Reprogrammed . | . . . Reused . | . . . Traps Extracted . | . . . Installed . | . . . Triggered . | . . . Machines | -11 -10 -10 ---------- Run | Yrd Mat Sub Machines Disabled . | . . . Max in Single Turn . | . . . Machines Repaired . | . . . Machines Dismantled . | . . . Machines Sabotaged . | . . . Overloaded Fab Kills . | . . . Hacking | -11 -10 -10 --------- Run | Yrd Mat Sub Machines Accessed . | . . . Terminals . | . . . Fabricators . | . . . Repair Stations . | . . . Recycling Units . | . . . Scanalyzers . | . . . Garrison Access . | . . . Total Hacks . | . . . Successful . | . . . Failed . | . . . Catastrophic . | . . . Database Lockouts . | . . . Manual . | . . . Terminals . | . . . Fabricators . | . . . Repair Stations . | . . . Recycling Units . | . . . Scanalyzers . | . . . Garrison Access . | . . . Terminal Hacks . | . . . Fabricator Hacks . | . . . Repair Station Hacks . | . . . Recycling Unit Hacks . | . . . Scanalyzer . | . . . Garrison Access Hacks . | . . . Unauthorized Hacks . | . . . Terminals . | . . . Fabricators . | . . . Repair Stations . | . . . Recycling Units . | . . . Scanalyzers . | . . . Garrison Access . | . . . Data Cores Recovered . | . . . Used . | . . . Hacking Detections . | . . . Full Trace Events . | . . . Feedback Events . | . . . Feedback Blocked . | . . . Robot Schematics Acquired . | . . . Robots Built . | . . . Authchips . | . . . Time . | . . . Total Robot Build Rating . | . . . Part Schematics Acquired . | . . . Parts Built . | . . . Authchips . | . . . Time . | . . . Total Part Build Rating . | . . . Part Studies Acquired . | . . . Parts Repaired . | . . . Time . | . . . Parts Recycled . | . . . Recycled Matter . | . . . Retrieved Matter . | . . . Retrieved Components . | . . . Parts Scanalyzed . | . . . Part Schematics Acquired . | . . . Parts Damaged . | . . . Bothacking | -11 -10 -10 ------------ Run | Yrd Mat Sub Used RIF Installer . | . . . Robots Hacked . | . . . Non-combat . | . . . Combat . | . . . Robot Hacks Applied . | . . . Relay Couplers Released . | . . . Fabnet Peak Effective % . | . . . Robots Rewired . | . . . Allies Hacked . | . . . Hacks Repelled . | . . . Allies | -11 -10 -10 -------- Run | Yrd Mat Sub Total Allies . | . . . Largest Group . | . . . Highest-Rated Group . | . . . Highest-Rated Ally . | . . . Total Orders . | . . . Ally Attacks . | . . . Total Damage . | . . . Kills . | . . . Allies Corrupted . | . . . Allies Melted . | . . . Intel | -11 -10 -10 ------- Run | Yrd Mat Sub Active Infowar (turns) . | . . . Robot Analysis Total . | . . . Derelict Logs Recovered . | . . . Drone Launches . | . . . Drone Recoveries . | . . . Exploration | -11 -10 -10 ------------- Run | Yrd Mat Sub Turns Passed 764 | 41 340 383 Spaces Moved 321 | 35 140 146 Core 16 | 14 . 2 Treads . | . . . Legs 305 | 21 140 144 Wheels . | . . . Hover . | . . . Flight . | . . . Fastest Speed 50 | 50 120 190 Average Speed 152 | 92 127 192 Slowest Speed 350 | 120 190 350 Overloaded Moves . | . . . Propulsion Burnouts . | . . . Robots Hopped . | . . . Potential Cave-ins . | . . . Cave-ins Triggered . | . . . Exploration Rate (%) 10 | 3 18 10 Regions Visited 2 Branch Regions 1 Pre-discovered Areas . | . . . Known Exits Taken . | . . . Unknown Exits Taken 2 | 1 1 . Scrap Searched . | . . . Spaces Dug . | . . . Terrain Destroyed . | . . . Melee . | . . . Projectile . | . . . AOE . | . . . Terrain Rammed . | . . . Walls Destroyed . | . . . Machines Disabled . | . . . Actions | -11 -10 -10 --------- Run | Yrd Mat Sub Total 512 | 42 285 185 Wait 123 | . 123 . Move 319 | 34 139 146 Hop . | . . . Pick Up 11 | 5 6 . Fast Attach 4 | 3 1 . Attach 5 | . 3 2 Detach . | . . . Swap 2 | . 1 1 Drop 3 | . 3 . Fire 45 | . 9 36 Melee . | . . . Ram . | . . . Kick . | . . . Crush . | . . . Escape Stasis . | . . . Rewire . | . . . Trap . | . . . Miscellaneous . | . . . Route ------- -11/Scrapyard -10/Materials -10/Subcaves History --------- Turn | Location | Event 12 | -11/Scrapyard | Discovered new exit (range 16) 42 | -11/Scrapyard | Entered Materials 301 | -10/Materials | Build established: Mutant 369 | -10/Materials | Discovered new exit (range 8) 382 | -10/Materials | Entered Subcaves 383 | -10/Subcaves | Approached by a straggling Scientist 583 | -10/Subcaves | Shifting Twisted Machinery released Sub. Monowheel 591 | -10/Subcaves | Shifting Twisted Machinery released Sub. Monowheel 702 | -10/Subcaves | Core integrity fell below 50% 738 | -10/Subcaves | Core integrity fell below 20% 765 | -10/Subcaves | Destroyed by FL-3ZW(R) with Subdweller Laser Last Messages --------------- 32-N30(c): "I think it's somewhere northwest of here" Sub. Monowheel falls loose from the Twisted Machinery. 00626_ Acquired 7 matter. 32-N30(c): "I think it's somewhere northwest of here" 00677_ Assault Rifle destroyed. 32-N30(c): "I think it's somewhere north of here" 00699_ Med. Laser destroyed. 00715_ Propulsion Shielding destroyed. 00736_ 32-N30(c) destroyed. 00739_ Subatomizers dissect the Tech Extrapolator. 00745_ Lgt. Ion Engine destroyed. 00747_ Particle Gun destroyed. 00753_ Aluminum Leg destroyed. 00759_ Med. Laser destroyed. 00764_ 8I-E7G(R): "LEAVESUB!" Map ----- +----------------------------------------------------+ | ????????????????????????????# #### #???? | | ????????????????????????????# #???? | | ????????????????????????????# | #???? | | ????????????????????????????# ##??? | | ????????????????????????????## ##?? | | ?????????????????????????????##="" #?? | | ??????????????????????????????# """ " #####?? | | ??????????????????????????????# "" ##?????? | | ??????????????????????????????# "= ## ##??????? | | ?????????????????????????????## # #?##???????? | | ?????????????????????????????# ## ##?????????? | | ?????????????????????????????## # #?????????? | | ?????????????????????#? ????"### "# #?????????? | | ????????????????????? ????"" """ #?????????? | | ????????????????????? ??# " "#" #?????????? | | ?????????????????????# ""??# # # ## ####???????? | | ????????????????????? %"##??#?### # # #???????? | | ????????????????????##"" #???### # #???????? | | ?????????????????????"" ##??# #???????? | | ???????????????????#?? "#### #???????? | | ????????????????????"##< ## #???????? | | ????????????????????""" ## ### #???????? | | ??????????????????????#R ## #?# #???????? | | ?????????????????????## = #? ##???????? | | ????????????????????## *%! ##? ##????????? | | ????????????????????# @ = #? #?????????? | | ????????????????????# % #?????????? | | ????????????????????## #????????? | | ?????????????????????#""" ## """" #???????? | | ?????????????????????# " ### """"" #???????? | | ?????????????????????##"" ?###""""## #???????? | | ??????????????????????### ????#"""?? #???????? | | ????????????????????????## #????#"??? ???????? | | ?????????????????????????? #????????? ????????? | | ?????????????????????????? #?????????????????????? | | ?????????????????????????? ?????????????????????? | | ?????????????????????????? "?????????????????????? | | ??????????????????????????""?????????????????????? | | ??????????????????????????"??????????????????????? | | ?????????????????????????????????????????????????? | | ?????????????????????????????????????????????????? | | ?????????????????????????????????????????????????? | | ?????????????????????????????????????????????????? | | ?????????????????????????????????????????????????? | | ?????????????????????????????????????????????????? | | ?????????????????????????????????????????????????? | | ?????????????????????????????????????????????????? | | ?????????????????????????????????????????????????? | | ?????????????????????????????????????????????????? | | ?????????????????????????????????????????????????? | +----------------------------------------------------+ Best States ------------- Heat Dissipation 25 Energy Generation 10 Energy Capacity 125 Matter Stores 300 Matter Capacity 300 Sight Range 16 Terrain Scan Density 10 Propulsion Shielding 33 Evasion (%) 55 Item Schematics ----------------- None Robot Schematics ------------------ None Fabricated ------------ Nothing Repaired ---------- Nothing Studied --------- None Alien Tech Used ----------------- None Achievements -------------- None Challenges ------------ None Game ------ Seed GreatSubdwellerMonowheel Manual? 0 Play Time 00:05:44 Cumulative 37.7 hours Start 2025.11.26 @ 15:10:39 End 2025.11.26 @ 15:14:37 Sessions 1 Manual Loads 0 Difficulty Rogue Special Mode None Game No. 115 Rogue 115 Adventurer 0 Explorer 0 Win Type - Total 0 Types 0/0/0/0/0/0/0/0/0/0 Lore% 16 Gallery% 26 Achievement% 20 Wizard Run 0 Options --------- Layout 1 ASCII 0 Keyboard 0 Movement Mouse Keybinds 0 Fullscreen 1 Font 24/Terminus Map View 50x35 Zoom Use 0% Tactical HUD 1 Map Filters NONE Filters NONE Steam 1 RUN: 8636e703-6ab4-42bd-9f15-d7b33e297284